Workbook

Sheet Sheet1
B1: Arc Length of a Curve
B3: This graphing utility illustrates
B4: the successive approximations to the
B5: arc length of the curve of any function
D6: y = f(x)
B7: extending from x = a to x = b:
A11: Enter the function in terms of x only: f(x) = | F11: x*cos(x)
A14: Now enter the interval for x:
C15: xMin = | D15: 0
C16: xMax = | D16: 6 | J16: The graph of the function y = | M16: =F11 -> x*cos(x)
A18: Enter the number of subdivisions n | J18: n | K18: Approximate Arc Length
B19: =2^(C19+2) -> 4 | C19: 0 | J19: 4 | K19: =Sheet2!H265 -> 14.3184
J20: 8 | K20: =Sheet2!H274 -> 15.1133
C21: L » | D21: =IF(n=4,K19,IF(n=8,K20,IF(n=16,K21,IF(n=32,K22,IF(n=64,K23,K24))))) -> 14.3184 | J21: 16 | K21: =Sheet2!H291 -> 15.3364
J22: 32 | K22: =Sheet2!H324 -> 15.3808
A23: Click each item below for suggestions and investigations | J23: 64 | K23: =Sheet2!H389 -> 15.3921
B24: Item 1 | J24: 128 | K24: =Sheet2!H518 -> 15.3950
B25: Item 2 | K25: =Sheet2!H259 -> 15.3957 | L25: = limiting value
B26: Item 3
A30: To access/download all the DIGMath Apps for Calculus
A31: Click this link: | C31: DIGMath for Calculus
A33: Created by: Sheldon P. Gordon
A34: Farmingdale State College
A35: Development of this module was supported by the
A36: NSF's Division of Undergraduate Education
A37: under grants DUE-0310123 and DUE-0442160.

Sheet Sheet2
C1: x | D1: y | E1: distance | F1: plotted points
D2: =Sheet1!F13 -> 0 | H2: =Sheet1!F13 -> 0
C3: =a -> 0 | D3: =x*COS(x) -> 0 | E3: =SQRT(dx^2+(D4-D3)^2) -> 0.03301216062 | G3: yMin = | H3: =MIN(D3:D260) -> -3.288295223 | J3: Note: 2-D data table is full array
A4: delta x = | B4: =(b-a)/257 -> 0.0233463035 | C4: =C3+dx -> 0.0233463035 | D4: 0.02333994134 | E4: 0.03298518788 | G4: yMax = | H4: =MAX(D3:D260) -> 5.76102172
C5: 0.046692607 | D5: 0.04664171665 | E5: 0.03293133328
C6: 0.07003891051 | D6: 0.06986719457 | E6: 0.03285077905
C7: 0.09338521401 | D7: 0.09297831304 | E7: 0.0327437998
C8: 0.1167315175 | D8: 0.1159371139 | E8: 0.03261076399
C9: 0.140077821 | D9: 0.1387057775 | E9: 0.03245213597
C10: 0.1634241245 | D10: 0.1612466568 | E10: 0.03226847852
C11: 0.186770428 | D11: 0.1835223121 | E11: 0.03206045601
C12: 0.2101167315 | D12: 0.2054955448 | E12: 0.03182883807
C13: 0.233463035 | D13: 0.2271294313 | E13: 0.03157450389
C14: 0.2568093385 | D14: 0.2483873571 | E14: 0.03129844717
C15: 0.280155642 | D15: 0.2692330499 | E15: 0.03100178169
C16: 0.3035019455 | D16: 0.289630613 | E16: 0.03068574755
C17: 0.326848249 | D17: 0.3095445582 | E17: 0.03035171801
C18: 0.3501945525 | D18: 0.3289398386 | E18: 0.03000120707
C19: 0.373540856 | D19: 0.3477818803 | E19: 0.02963587751
C20: 0.3968871595 | D20: 0.3660366153 | E20: 0.02925754947
C21: 0.420233463 | D21: 0.383670512 | E21: 0.02886820946
C22: 0.4435797665 | D22: 0.4006506071 | E22: 0.02847001938
C23: 0.46692607 | D23: 0.416944536 | E23: 0.02806532553
C24: 0.4902723735 | D24: 0.4325205627 | E24: 0.02765666702
C25: 0.513618677 | D25: 0.4473476104 | E25: 0.02724678305
C26: 0.5369649805 | D26: 0.4613952899 | E26: 0.02683861857
C27: 0.560311284 | D27: 0.4746339288 | E27: 0.02643532713
C28: 0.5836575875 | D28: 0.4870345995 | E28: 0.02604027013
C29: 0.6070038911 | D29: 0.4985691468 | E29: 0.02565701111
C30: 0.6303501946 | D30: 0.509210215 | E30: 0.02528930365
C31: 0.6536964981 | D31: 0.5189312742 | E31: 0.02494107134
C32: 0.6770428016 | D32: 0.5277066461 | E32: 0.02461637842
C33: 0.7003891051 | D33: 0.5355115291 | E33: 0.02431938963
C34: 0.7237354086 | D34: 0.5423220228 | E34: 0.02405431828
C35: 0.7470817121 | D35: 0.5481151516 | E35: 0.02382536241
C36: 0.7704280156 | D36: 0.5528688877 | E36: 0.02363662936
C37: 0.7937743191 | D37: 0.5565621735 | E37: 0.02349205085
C38: 0.8171206226 | D38: 0.5591749433 | E38: 0.02339529146
C39: 0.8404669261 | D39: 0.5606881437 | E39: 0.02334965513
C40: 0.8638132296 | D40: 0.5610837537 | E40: 0.02335799507
C41: 0.8871595331 | D41: 0.5603448042 | E41: 0.02342263329
C42: 0.9105058366 | D42: 0.5584553961 | E42: 0.02354529564
C43: 0.9338521401 | D43: 0.5554007178 | E43: 0.02372706741
C44: 0.9571984436 | D44: 0.5511670621 | E44: 0.02396837293
C45: 0.9805447471 | D45: 0.545741842 | E45: 0.02426898034
C46: 1.003891051 | D46: 0.5391136054 | E46: 0.02462803041
C47: 1.027237354 | D47: 0.5312720498 | E47: 0.02504408621
C48: 1.050583658 | D48: 0.5222080348 | E48: 0.02551519896
C49: 1.073929961 | D49: 0.511913595 | E49: 0.02603898429
C50: 1.097276265 | D50: 0.5003819509 | E50: 0.02661270338
C51: 1.120622568 | D51: 0.4876075197 | E51: 0.0272333439
C52: 1.143968872 | D52: 0.4735859245 | E52: 0.0278976965
C53: 1.167315175 | D53: 0.4583140031 | E53: 0.02860242402
C54: 1.190661479 | D54: 0.4417898156 | E54: 0.02934412157
C55: 1.214007782 | D55: 0.4240126509 | E55: 0.03011936688
C56: 1.237354086 | D56: 0.4049830326 | E56: 0.03092476076
C57: 1.260700389 | D57: 0.3847027234 | E57: 0.03175695866
C58: 1.284046693 | D58: 0.3631747291 | E58: 0.03261269397
C59: 1.307392996 | D59: 0.3404033014 | E59: 0.03348879449
C60: 1.3307393 | D60: 0.3163939393 | E60: 0.03438219316
C61: 1.354085603 | D61: 0.2911533902 | E61: 0.0352899342
C62: 1.377431907 | D62: 0.2646896496 | E62: 0.03620917567
C63: 1.40077821 | D63: 0.2370119597 | E63: 0.03713718938
C64: 1.424124514 | D64: 0.2081308076 | E64: 0.03807135879
C65: 1.447470817 | D65: 0.1780579216 | E65: 0.03900917563
C66: 1.470817121 | D66: 0.1468062673 | E66: 0.0399482356
C67: 1.494163424 | D67: =x*COS(x) -> 0.1143900423 | E67: =SQRT(dx^2+(D68-D67)^2) -> 0.04088623356
C68: =C67+dx -> 1.517509728 | D68: 0.08082467016 | E68: 0.04182095852
C69: 1.540856031 | D69: 0.04612679292 | E69: 0.04275028857
C70: 1.564202335 | D70: 0.01031426319 | E70: 0.04367218592
C71: 1.587548638 | D71: -0.02659386513 | E71: 0.04458469218
C72: 1.610894942 | D72: -0.06457734692 | E72: 0.0454859239
C73: 1.634241245 | D73: -0.103614757 | E73: 0.04637406846
C74: 1.657587549 | D74: -0.1436835022 | E74: 0.04724738025
C75: 1.680933852 | D75: -0.1847598342 | E75: 0.04810417723
C76: 1.704280156 | D76: -0.2268188639 | E76: 0.04894283783
C77: 1.727626459 | D77: -0.269834576 | E77: 0.04976179817
C78: 1.750972763 | D78: -0.313779845 | E78: 0.05055954954
C79: 1.774319066 | D79: -0.3586264521 | E79: 0.05133463631
C80: 1.79766537 | D80: -0.4043451025 | E80: 0.05208565394
C81: 1.821011673 | D81: -0.4509054446 | E81: 0.05281124735
C82: 1.844357977 | D82: -0.4982760891 | E82: 0.05351010955
C83: 1.86770428 | D83: -0.5464246295 | E83: 0.05418098035
C84: 1.891050584 | D84: -0.5953176632 | E84: 0.05482264539
C85: 1.914396887 | D85: -0.6449208139 | E85: 0.05543393534
C86: 1.937743191 | D86: -0.6951987544 | E86: 0.05601372515
C87: 1.961089494 | D87: -0.7461152303 | E87: 0.05656093358
C88: 1.984435798 | D88: -0.7976330846 | E88: 0.0570745228
C89: 2.007782101 | D89: -0.8497142834 | E89: 0.05755349815
C90: 2.031128405 | D90: -0.9023199415 | E90: 0.05799690792
C91: 2.054474708 | D91: -0.9554103497 | E91: 0.05840384338
C92: 2.077821012 | D92: -1.008945002 | E92: 0.0587734388
C93: 2.101167315 | D93: -1.062882626 | E93: 0.05910487159
C94: 2.124513619 | D94: -1.117181207 | E94: 0.05939736253
C95: 2.147859922 | D95: -1.171798025 | E95: 0.0596501761
C96: 2.171206226 | D96: -1.226689679 | E96: 0.05986262084
C97: 2.194552529 | D97: -1.281812119 | E97: 0.06003404984
C98: 2.217898833 | D98: -1.337120683 | E98: 0.06016386127
C99: 2.241245136 | D99: -1.392570123 | E99: 0.060251499
C100: 2.26459144 | D100: -1.448114639 | E100: 0.06029645334
C101: 2.287937743 | D101: -1.503707915 | E101: 0.06029826176
C102: 2.311284047 | D102: -1.559303153 | E102: 0.06025650981
C103: 2.33463035 | D103: -1.614853104 | E103: 0.06017083209
C104: 2.357976654 | D104: -1.670310107 | E104: 0.0600409133
C105: 2.381322957 | D105: -1.725626121 | E105: 0.05986648947
C106: 2.404669261 | D106: -1.780752763 | E106: 0.05964734923
C107: 2.428015564 | D107: -1.835641345 | E107: 0.05938333532
C108: 2.451361868 | D108: -1.890242907 | E108: 0.05907434622
C109: 2.474708171 | D109: -1.94450826 | E109: 0.05872033793
C110: 2.498054475 | D110: -1.998388017 | E110: 0.05832132607
C111: 2.521400778 | D111: -2.051832634 | E111: 0.05787738813
C112: 2.544747082 | D112: -2.104792451 | E112: 0.0573886661
C113: 2.568093385 | D113: -2.157217723 | E113: 0.05685536932
C114: 2.591439689 | D114: -2.209058663 | E114: 0.05627777789
C115: 2.614785992 | D115: -2.260265483 | E115: 0.05565624639
C116: 2.638132296 | D116: -2.310788427 | E116: 0.05499120825
C117: 2.661478599 | D117: -2.360577815 | E117: 0.05428318071
C118: 2.684824903 | D118: -2.409584078 | E118: 0.05353277057
C119: 2.708171206 | D119: -2.457757801 | E119: 0.05274068079
C120: 2.73151751 | D120: -2.505049762 | E120: 0.05190771824
C121: 2.754863813 | D121: -2.551410967 | E121: 0.05103480261
C122: 2.778210117 | D122: -2.596792694 | E122: 0.05012297692
C123: 2.80155642 | D123: -2.641146532 | E123: 0.04917341981
C124: 2.824902724 | D124: -2.684424417 | E124: 0.04818745995
C125: 2.848249027 | D125: -2.726578674 | E125: 0.04716659307
C126: 2.871595331 | D126: -2.767562056 | E126: 0.04611250208
C127: 2.894941634 | D127: -2.807327782 | E127: 0.04502708093
C128: 2.918287938 | D128: -2.845829576 | E128: 0.04391246289
C129: 2.941634241 | D129: -2.883021706 | E129: 0.04277105427
C130: 2.964980545 | D130: -2.918859022 | E130: 0.04160557441
C131: 2.988326848 | D131: =x*COS(x) -> -2.953296994 | E131: =SQRT(dx^2+(D132-D131)^2) -> 0.04041910349
C132: =C131+dx -> 3.011673152 | D132: -2.986291752 | E132: 0.0392151392
C133: 3.035019455 | D133: -3.01780012 | E133: 0.03799766412
C134: 3.058365759 | D134: -3.047779656 | E134: 0.03677122528
C135: 3.081712062 | D135: -3.076188688 | E135: 0.03554102751
C136: 3.105058366 | D136: -3.102986351 | E136: 0.03431304182
C137: 3.128404669 | D137: -3.128132623 | E137: 0.03309412908
C138: 3.151750973 | D138: -3.151588357 | E138: 0.03189217778
C139: 3.175097276 | D139: -3.173315325 | E139: 0.03071625174
C140: 3.19844358 | D140: -3.193276242 | E140: 0.02957673862
C141: 3.221789883 | D141: -3.21143481 | E141: 0.02848548336
C142: 3.245136187 | D142: -3.227755744 | E142: 0.02745588019
C143: 3.26848249 | D143: -3.242204808 | E143: 0.02650288451
C144: 3.291828794 | D144: -3.254748851 | E144: 0.02564289217
C145: 3.315175097 | D145: -3.265355831 | E145: 0.02489342497
C146: 3.338521401 | D146: -3.273994854 | E146: 0.02427256397
C147: 3.361867704 | D147: -3.2806362 | E147: 0.0237980993
C148: 3.385214008 | D148: -3.285251354 | E148: 0.02348642362
C149: 3.408560311 | D149: -3.287813034 | E149: 0.02335128248
C150: 3.431906615 | D150: -3.288295223 | E150: 0.02340258254
C151: 3.455252918 | D151: -3.286673193 | E151: 0.02364550373
C152: 3.478599222 | D152: -3.282923532 | E152: 0.02408012339
C153: 3.501945525 | D153: -3.277024171 | E153: 0.02470163795
C154: 3.525291829 | D154: -3.268954411 | E154: 0.02550110914
C155: 3.548638132 | D155: -3.258694943 | E155: 0.0264665385
C156: 3.571984436 | D156: -3.246227876 | E156: 0.02758403381
C157: 3.595330739 | D157: -3.231536755 | E157: 0.02883887091
C158: 3.618677043 | D158: -3.214606587 | E158: 0.03021633565
C159: 3.642023346 | D159: -3.195423859 | E159: 0.03170231195
C160: 3.66536965 | D160: -3.173976558 | E160: 0.03328363768
C161: 3.688715953 | D161: -3.150254192 | E161: 0.0349482773
C162: 3.712062257 | D162: -3.124247805 | E162: 0.0366853652
C163: 3.73540856 | D163: -3.095949993 | E163: 0.03848516666
C164: 3.758754864 | D164: -3.065354926 | E164: 0.04033899265
C165: 3.782101167 | D165: -3.032458354 | E165: 0.04223909314
C166: 3.805447471 | D166: -2.997257628 | E166: 0.04417854494
C167: 3.828793774 | D167: -2.959751709 | E167: 0.04615114351
C168: 3.852140078 | D168: -2.919941181 | E168: 0.04815130348
C169: 3.875486381 | D169: -2.877828259 | E169: 0.05017397005
C170: 3.898832685 | D170: -2.833416804 | E170: 0.05221454178
C171: 3.922178988 | D171: -2.786712324 | E171: 0.05426880409
C172: 3.945525292 | D172: -2.737721986 | E172: 0.05633287257
C173: 3.968871595 | D173: -2.686454621 | E173: 0.05840314498
C174: 3.992217899 | D174: -2.632920731 | E174: 0.06047626075
C175: 4.015564202 | D175: -2.577132486 | E175: 0.0625490669
C176: 4.038910506 | D176: -2.519103736 | E176: 0.06461858937
C177: 4.062256809 | D177: -2.458850004 | E177: 0.06668200902
C178: 4.085603113 | D178: -2.396388492 | E178: 0.06873664143
C179: 4.108949416 | D179: -2.331738078 | E179: 0.07077991998
C180: 4.13229572 | D180: -2.264919315 | E180: 0.07280938168
C181: 4.155642023 | D181: -2.195954424 | E181: 0.07482265519
C182: 4.178988327 | D182: -2.124867295 | E182: 0.07681745089
C183: 4.20233463 | D183: -2.05168348 | E183: 0.07879155248
C184: 4.225680934 | D184: -1.976430182 | E184: 0.08074280994
C185: 4.249027237 | D185: -1.899136253 | E185: 0.08266913372
C186: 4.272373541 | D186: -1.819832181 | E186: 0.08456848979
C187: 4.295719844 | D187: -1.738550082 | E187: 0.08643889562
C188: 4.319066148 | D188: -1.655323687 | E188: 0.08827841676
C189: 4.342412451 | D189: -1.570188331 | E189: 0.09008516408
C190: 4.365758755 | D190: -1.483180935 | E190: 0.09185729152
C191: 4.389105058 | D191: -1.394339998 | E191: 0.09359299423
C192: 4.412451362 | D192: -1.303705574 | E192: 0.09529050711
C193: 4.435797665 | D193: -1.211319261 | E193: 0.09694810366
C194: 4.459143969 | D194: -1.117224177 | E194: 0.09856409511
C195: 4.482490272 | D195: =x*COS(x) -> -1.021464942 | E195: =SQRT(dx^2+(D196-D195)^2) -> 0.1001368298
C196: =C195+dx -> 4.505836576 | D196: -0.9240876618 | E196: 0.1016646926
C197: 4.529182879 | D197: -0.8251398987 | E197: 0.1031461048
C198: 4.552529183 | D198: -0.7246706544 | E198: 0.1045795241
C199: 4.575875486 | D199: -0.6227303436 | E199: 0.1059634442
C200: 4.59922179 | D200: -0.5193707691 | E200: 0.1072963955
... 318 more rows

Sheet Defining Function
A1: Defining a Function in Excel
A3: Computers have very specific rules you must follow when defining a function. If you don't, the program will either not work at all or will work incorrectly.
A5: 1. The Variable used should be the one named in the instruction, usually x, though sometimes y, t, Q (for an angle theta),
A6: or even x and y (for a function of two variables).
A8: 2. Order of Operations: There five arithmetic operations, addition (+), subtraction (-), multiplication (*), division (/), and exponentiation or power (^). When computers see any of these operation symbols, they perform the indicated steps in a very particular order. First, the power is done. Second, products and quotients of adjacent terms is done. Third, and last, sums and differences of adjacent terms are done. So, in 10*x^3 + 5*x – 7, say with x = 2, the first pass only calculates 2^3 and ignores the multiplications and the sums and differences to calculate 2^3 = 8. The second pass looks at 10*8 + 5*2 – 7 and only does the multiplications, so it produces 80 + 10 - 7. The third pass looks at the +’s and –‘s to produce 80 + 10 – 7 = 83.
A10: 3. Parentheses If you need an operation involving more than two adjacent terms, as in Ö4^3 + 6^2, the computer would take the square root of 4 to produce 2^3 + 6^2; it would then cube the 2 and square the 6 to produce 8 + 36; and finally it would add the 8 and the 36 to get 44. If you actually wanted the square root of the entire expression, you would need to use parentheses, as in Ö(4^3 + 6^2) to tell the computer to do all the operations inside the parentheses before taking the square root. Therefore, it would calculate (4^3 + 6^2) = 64 + 36 = 100 and then take the square root of Ö100 = 10.
A12: 4. Built-In Functions Computer programs have built-in functions for most common algebraic functions. In Excel, the square root function is denoted by SQRT(…), so SQRT(100) = 10. Alternatively, you could enter it as 100^.5 or 100^(1/2); notice that parentheses are needed to have the ½ done first. The common trig functions are SIN (…), COS (…), and TAN (…), where the arguments are automatically interpreted as being in radians, not degrees. The logarithm to the base 10 is represented by LOG (…) and the logarithm with the base e, known as the natural logarithm, is LN (…). The corresponding exponential function with base e is EXP (x). If x is the variable, then each of these would be SQRT (x), SIN (x), COS (x), TAN (x), LOG (x) (for log with base 10 ), LN (x) (for log with base e ), and EXP (x).

Sheet Sheet3
